Workbook

Sheet ОСНОВНОЙ ТАБЕЛЬ
A1: ОТЧЁТНЫЙ ПЕРИОД | C1: =--(1&"/"&E1&"/"&[1]норма!$A$1) -> 2014-06-01 | E1: 6 | M1: Предпраздничные | T1: Праздничные | AT1: Служит для счёта отсутствующих и в какой период
T2: =IFERROR(--(INDEX(норма!D3:D14,$E1)&"/"&$E1),"") -> 2014-06-12 | U2: =IFERROR(--(INDEX(норма!E3:E14,$E1)&"/"&$E1),"") -> 2014-06-13 | V2: =IFERROR(--(INDEX(норма!F3:F14,$E1)&"/"&$E1),"") ->  | W2: =IFERROR(--(INDEX(норма!G3:G14,$E1)&"/"&$E1),"") ->  | X2: =IFERROR(--(INDEX(норма!H3:H14,$E1)&"/"&$E1),"") ->  | Y2: =IFERROR(--(INDEX(норма!I3:I14,$E1)&"/"&$E1),"") ->  | Z2: =IFERROR(--(INDEX(норма!J3:J14,$E1)&"/"&$E1),"") ->  | AA2: =IFERROR(--(INDEX(норма!K3:K14,$E1)&"/"&$E1),"") ->  | AB2: =IFERROR(--(INDEX(норма!L3:L14,$E1)&"/"&$E1),"") ->  | AC2: =IFERROR(--(INDEX(норма!M3:M14,$E1)&"/"&$E1),"") ->  | AD2: =IFERROR(--(INDEX(норма!N3:N14,$E1)&"/"&$E1),"") -> 
C3: Т А Б Е Л Ь | AT3: ОТСУТСТВУЮЩИЕ (За месяц)
C4: рабочего времени участка такелажных работ 1 категории
O5: за | P5: =C1 -> 2014-06-01 | T5: месяц | W5: 2014 | Y5: г. | AT5: Д/О | AW5: Отпуск | AZ5: Больничный | BC5: Увольнение | BF5: Командировка | BI5: Донорский день | BL5: Учебный отпуск
C6: № по сп | D6: Фамилия,И,О. | E6: Таб. № | F6: Разряд | G6: Специальность | H6: ДНИ МЕСЯЦА | AM6: Итого дней за месяц | AN6: Итого часов за месяц | AO6: Кол-во вых.дней | AP6: Кол-во вых.часов
AT7: кол-во дней | AU7: нач. дата | AV7: кон. дата | AW7: кол-во дней | AX7: нач. дата | AY7: кон. дата | AZ7: кол-во дней | BA7: нач. дата | BB7: кон. дата | BC7: кол-во дней | BD7: нач. дата | BE7: кон. дата | BF7: кол-во дней | BG7: нач. дата | BH7: кон. дата | BI7: кол-во дней | BJ7: нач. дата | BK7: кон. дата | BL7: кол-во дней | BM7: нач. дата | BN7: кон. дата
H8: =H9 -> 2014-06-01 | I8: =I9 -> 2014-06-02 | J8: 2014-06-03 | K8: 2014-06-04 | L8: 2014-06-05 | M8: 2014-06-06 | N8: 2014-06-07 | O8: 2014-06-08 | P8: 2014-06-09 | Q8: 2014-06-10 | R8: 2014-06-11 | S8: 2014-06-12 | T8: 2014-06-13 | U8: 2014-06-14 | V8: 2014-06-15 | W8: 2014-06-16 | X8: 2014-06-17 | Y8: 2014-06-18 | Z8: 2014-06-19 | AA8: 2014-06-20 | AB8: 2014-06-21 | AC8: 2014-06-22 | AD8: 2014-06-23 | AE8: 2014-06-24 | AF8: 2014-06-25 | AG8: 2014-06-26 | AH8: 2014-06-27 | AI8: 2014-06-28 | AJ8: 2014-06-29 | AK8: 2014-06-30
H9: =C1 -> 2014-06-01 | I9: =H9+1 -> 2014-06-02 | J9: =I9+1 -> 2014-06-03 | K9: =J9+1 -> 2014-06-04 | L9: 2014-06-05 | M9: 2014-06-06 | N9: 2014-06-07 | O9: 2014-06-08 | P9: 2014-06-09 | Q9: 2014-06-10 | R9: 2014-06-11 | S9: 2014-06-12 | T9: 2014-06-13 | U9: 2014-06-14 | V9: 2014-06-15 | W9: 2014-06-16 | X9: 2014-06-17 | Y9: 2014-06-18 | Z9: 2014-06-19 | AA9: 2014-06-20 | AB9: 2014-06-21 | AC9: 2014-06-22 | AD9: 2014-06-23 | AE9: 2014-06-24 | AF9: 2014-06-25 | AG9: 2014-06-26 | AH9: 2014-06-27 | AI9: 2014-06-28 | AJ9: =IF(DAY($AI9+1)>DAY(AI9),$AI9+1,"") -> 2014-06-29 | AK9: =IF(DAY($AI9+2)>DAY(AI9),$AI9+2,"") -> 2014-06-30 | AL9: =IF(DAY($AI9+3)>DAY(AI9),$AI9+3,"") -> 
AM11: =COUNT(H12:AL12)+SUMPRODUCT((ТАБЛИЦА!$F$1:$F$28=H12:AL12)*ТАБЛИЦА!$G$1:$G$28) -> 19 | AN11: =SUMPRODUCT(--TEXT(SUBSTITUTE(SUBSTITUTE(H12:AL12,"я",""),"/",""),"#,#;;0;\0"))+SUM(H13:AL13) -> 137
C12: 1 | D12: Иванова А.В. | E12: 719 | F12: - | G12: Планировщик | I12: 8 | J12: 7 | K12: 7 | L12: 7 | M12: 7 | P12: 8 | Q12: 7 | R12: 6 | W12: 8 | X12: 7 | Y12: 7 | Z12: 7 | AA12: 7 | AD12: 8 | AE12: 7 | AF12: 7 | AG12: 7 | AH12: 7 | AK12: 8 | AO12: =SUM(((IFERROR(WEEKDAY(H$9:AL$9,2),)>5)+(ISNUMBER(MATCH(--H$9:AL$9,T$2:AD$2,))))*ISNUMBER(H12:AL12)) -> 0 | AP12: =SUM(((IFERROR(WEEKDAY(H$9:AL$9,2),)>5)+(ISNUMBER(MATCH(--H$9:AL$9,T$2:AD$2,))))*IF(ISNUMBER(H12:AL12),H12:AL12,)) -> 0 | AR12: =AT12 ->  | AT12: =IF(COUNTIF(H12:AL12,"д/о"),COUNTIF(H12:AL12,"д/о"),"") ->  | AU12: =MIN(IF(ISTEXT(H12:AL12),--$H$59:$AL$59)) -> 0 | AV12: =MAX(IF(ISTEXT(H12:AL12),--$H$59:$AL$59)) -> 0 | AW12: =IF(COUNTIF(H12:AL12,"о"),COUNTIF(H12:AL12,"о"),"") ->  | AX12: =MIN(IF(ISTEXT(H12:AL12),--$H$59:$AL$59)) -> 0 | AY12: =MAX(IF(ISTEXT(H12:AL12),--$H$59:$AL$59)) -> 0 | AZ12: =IF(COUNTIF(H12:AL12,"Б"),COUNTIF(H12:AL12,"Б"),"") ->  | BA12: =MIN(IF(ISTEXT(H12:AL12),--$H$59:$AL$59)) -> 0 | BB12: =MAX(IF(ISTEXT(H12:AL12),--$H$59:$AL$59)) -> 0 | BC12: =IF(COUNTIF(H12:AL12,"А"),COUNTIF(H12:AL12,"А"),"") ->  | BD12: =MIN(IF(ISTEXT(H12:AL12),--$H$59:$AL$59)) -> 0 | BE12: =MAX(IF(ISTEXT(H12:AL12),--$H$59:$AL$59)) -> 0 | BF12: =IF(COUNTIF(H12:AL12,"К"),COUNTIF(H12:AL12,"К"),"") ->  | BG12: =MIN(IF(ISTEXT(H12:AL12),--$H$59:$AL$59)) -> 0 | BH12: =MAX(IF(ISTEXT(H12:AL12),--$H$59:$AL$59)) -> 0 | BI12: =IF(COUNTIF(H12:AL12,"Д"),COUNTIF(H12:AL12,"Д"),"") ->  | BJ12: =MIN(IF(ISTEXT(H12:AL12),--$H$59:$AL$59)) -> 0 | BK12: =MAX(IF(ISTEXT(H12:AL12),--$H$59:$AL$59)) -> 0 | BL12: =IF(COUNTIF(H12:AL12,"У"),COUNTIF(H12:AL12,"У"),"") ->  | BM12: =MIN(IF(ISTEXT(H12:AL12),--$H$59:$AL$59)) -> 0 | BN12: =MAX(IF(ISTEXT(H12:AL12),--$H$59:$AL$59)) -> 0
AM14: =COUNT(H15:AL15)+SUMPRODUCT((ТАБЛИЦА!$F$1:$F$28=H15:AL15)*ТАБЛИЦА!$G$1:$G$28) -> 17.64 | AN14: =SUMPRODUCT(--TEXT(SUBSTITUTE(SUBSTITUTE(H15:AL15,"я",""),"/",""),"#,#;;0;\0"))+SUM(H16:AL16) -> 126.5
C15: 2 | D15: Забенько О.Н. | E15: 623 | G15: Кладовщик | I15: 8 | J15: 7 | K15: 7 | L15: 7 | M15: 7 | P15: 8 | Q15: 7 | R15: 6 | W15: 8 | X15: 7 | Y15: 7 | Z15: 7 | AA15: 7 | AD15: 8 | AE15: 7 | AF15: 7 | AG15: 7 | AH15: А | AK15: я/4,5 | AO15: =SUM(((IFERROR(WEEKDAY(H$9:AL$9,2),)>5)+(ISNUMBER(MATCH(--H$9:AL$9,T$2:AD$2,))))*ISNUMBER(H15:AL15)) -> 0 | AP15: =SUM(((IFERROR(WEEKDAY(H$9:AL$9,2),)>5)+(ISNUMBER(MATCH(--H$9:AL$9,T$2:AD$2,))))*IF(ISNUMBER(H15:AL15),H15:AL15,)) -> 0 | AT15: =IF(COUNTIF(H15:AL15,"д/о"),COUNTIF(H15:AL15,"д/о"),"") ->  | AU15: =MIN(IF(ISTEXT(H15:AL15),--$H$59:$AL$59)) -> 27 | AV15: =MAX(IF(ISTEXT(H15:AL15),--$H$59:$AL$59)) -> 30 | AW15: =IF(COUNTIF(H15:AL15,"о"),COUNTIF(H15:AL15,"о"),"") ->  | AX15: =MIN(IF(ISTEXT(H15:AL15),--$H$59:$AL$59)) -> 27 | AY15: =MAX(IF(ISTEXT(H15:AL15),--$H$59:$AL$59)) -> 30 | AZ15: =IF(COUNTIF(H15:AL15,"Б"),COUNTIF(H15:AL15,"Б"),"") ->  | BA15: =MIN(IF(ISTEXT(H15:AL15),--$H$59:$AL$59)) -> 27 | BB15: =MAX(IF(ISTEXT(H15:AL15),--$H$59:$AL$59)) -> 30 | BC15: =IF(COUNTIF(H15:AL15,"А"),COUNTIF(H15:AL15,"А"),"") -> 1 | BD15: =MIN(IF(ISTEXT(H15:AL15),--$H$59:$AL$59)) -> 27 | BE15: =MAX(IF(ISTEXT(H15:AL15),--$H$59:$AL$59)) -> 30 | BF15: =IF(COUNTIF(H15:AL15,"К"),COUNTIF(H15:AL15,"К"),"") ->  | BG15: =MIN(IF(ISTEXT(H15:AL15),--$H$59:$AL$59)) -> 27 | BH15: =MAX(IF(ISTEXT(H15:AL15),--$H$59:$AL$59)) -> 30 | BI15: =IF(COUNTIF(H15:AL15,"Д"),COUNTIF(H15:AL15,"Д"),"") ->  | BJ15: =MIN(IF(ISTEXT(H15:AL15),--$H$59:$AL$59)) -> 27 | BK15: =MAX(IF(ISTEXT(H15:AL15),--$H$59:$AL$59)) -> 30 | BL15: =IF(COUNTIF(H15:AL15,"У"),COUNTIF(H15:AL15,"У"),"") ->  | BM15: =MIN(IF(ISTEXT(H15:AL15),--$H$59:$AL$59)) -> 27 | BN15: =MAX(IF(ISTEXT(H15:AL15),--$H$59:$AL$59)) -> 30 | BP15: 1.Как скрыть чтобы не мешали остальные периоды в УФ что только не проб
BP16: Должны оставаться только ячейки где именно (день-нач-кон)выделил жёлтым
AH17: 1 | AI17: 1 | AM17: =COUNT(H18:AL18)+SUMPRODUCT((ТАБЛИЦА!$B$1:$B$28=H18:AL18)*ТАБЛИЦА!$C$1:$C$28) -> 20 | AN17: =SUMPRODUCT(--TEXT(SUBSTITUTE(SUBSTITUTE(H18:AL18,"я",""),"/",""),"#,#;;0;\0"))+SUM(H19:AL19) -> 158
C18: 3 | D18: Петровский С.А. | E18: 28 | F18: - | G18: Ст.Мастер | H18: 8 | I18: 8 | J18: 8 | K18: 8 | L18: 8 | M18: 8 | P18: 8 | Q18: 8 | R18: Д/О | W18: 8 | X18: 8 | Y18: 8 | Z18: 8 | AA18: 8 | AB18: 8 | AD18: 8 | AE18: 8 | AF18: 8 | AG18: 8 | AH18: 7 | AI18: 7 | AK18: О | AO18: =SUM(((IFERROR(WEEKDAY(H$9:AL$9,2),)>5)+(ISNUMBER(MATCH(--H$9:AL$9,T$2:AD$2,))))*ISNUMBER(H18:AL18)) -> 3 | AP18: =SUM(((IFERROR(WEEKDAY(H$9:AL$9,2),)>5)+(ISNUMBER(MATCH(--H$9:AL$9,T$2:AD$2,))))*IF(ISNUMBER(H18:AL18),H18:AL18,)) -> 23 | AT18: =IF(COUNTIF(H18:AL18,"д/о"),COUNTIF(H18:AL18,"д/о"),"") -> 1 | AU18: =MIN(IF(ISTEXT(H18:AL18),--$H$59:$AL$59)) -> 11 | AV18: =MAX(IF(ISTEXT(H18:AL18),--$H$59:$AL$59)) -> 30 | AW18: =IF(COUNTIF(H18:AL18,"о"),COUNTIF(H18:AL18,"о"),"") -> 1 | AX18: =MIN(IF(ISTEXT(H18:AL18),--$H$59:$AL$59)) -> 11 | AY18: =MAX(IF(ISTEXT(H18:AL18),--$H$59:$AL$59)) -> 30 | AZ18: =IF(COUNTIF(H18:AL18,"Б"),COUNTIF(H18:AL18,"Б"),"") ->  | BA18: =MIN(IF(ISTEXT(H18:AL18),--$H$59:$AL$59)) -> 11 | BB18: =MAX(IF(ISTEXT(H18:AL18),--$H$59:$AL$59)) -> 30 | BC18: =IF(COUNTIF(H18:AL18,"А"),COUNTIF(H18:AL18,"А"),"") ->  | BD18: =MIN(IF(ISTEXT(H18:AL18),--$H$59:$AL$59)) -> 11 | BE18: =MAX(IF(ISTEXT(H18:AL18),--$H$59:$AL$59)) -> 30 | BF18: =IF(COUNTIF(H18:AL18,"К"),COUNTIF(H18:AL18,"К"),"") ->  | BG18: =MIN(IF(ISTEXT(H18:AL18),--$H$59:$AL$59)) -> 11 | BH18: =MAX(IF(ISTEXT(H18:AL18),--$H$59:$AL$59)) -> 30 | BI18: =IF(COUNTIF(H18:AL18,"Д"),COUNTIF(H18:AL18,"Д"),"") ->  | BJ18: =MIN(IF(ISTEXT(H18:AL18),--$H$59:$AL$59)) -> 11 | BK18: =MAX(IF(ISTEXT(H18:AL18),--$H$59:$AL$59)) -> 30 | BL18: =IF(COUNTIF(H18:AL18,"У"),COUNTIF(H18:AL18,"У"),"") ->  | BM18: =MIN(IF(ISTEXT(H18:AL18),--$H$59:$AL$59)) -> 11 | BN18: =MAX(IF(ISTEXT(H18:AL18),--$H$59:$AL$59)) -> 30
AM20: =COUNT(H21:AL21)+SUMPRODUCT((ТАБЛИЦА!$B$1:$B$28=H21:AL21)*ТАБЛИЦА!$C$1:$C$28) -> 21 | AN20: =SUMPRODUCT(--TEXT(SUBSTITUTE(SUBSTITUTE(H21:AL21,"я",""),"/",""),"#,#;;0;\0"))+SUM(H22:AL22) -> 167
C21: 4 | D21: Шевчук А.Н. | E21: 30 | F21: - | G21: Мастер | I21: Д/О | J21: 8 | K21: 8 | L21: 8 | M21: 8 | N21: 8 | P21: Д/О | Q21: 8 | R21: 7 | T21: 8 | U21: 8 | V21: 8 | W21: 8 | X21: 8 | Y21: 8 | Z21: Д/О | AA21: 8 | AC21: 8 | AD21: 8 | AE21: 8 | AF21: 8 | AG21: 8 | AH21: Д/О | AJ21: 8 | AK21: 8 | AO21: =SUM(((IFERROR(WEEKDAY(H$9:AL$9,2),)>5)+(ISNUMBER(MATCH(--H$9:AL$9,T$2:AD$2,))))*ISNUMBER(H21:AL21)) -> 6 | AP21: =SUM(((IFERROR(WEEKDAY(H$9:AL$9,2),)>5)+(ISNUMBER(MATCH(--H$9:AL$9,T$2:AD$2,))))*IF(ISNUMBER(H21:AL21),H21:AL21,)) -> 48 | AT21: =IF(COUNTIF(H21:AL21,"д/о"),COUNTIF(H21:AL21,"д/о"),"") -> 4 | AU21: =MIN(IF(ISTEXT(H21:AL21),--$H$59:$AL$59)) -> 2 | AV21: =MAX(IF(ISTEXT(H21:AL21),--$H$59:$AL$59)) -> 27 | AW21: =IF(COUNTIF(H21:AL21,"о"),COUNTIF(H21:AL21,"о"),"") ->  | AX21: =MIN(IF(ISTEXT(H21:AL21),--$H$59:$AL$59)) -> 2 | AY21: =MAX(IF(ISTEXT(H21:AL21),--$H$59:$AL$59)) -> 27 | AZ21: =IF(COUNTIF(H21:AL21,"Б"),COUNTIF(H21:AL21,"Б"),"") ->  | BA21: =MIN(IF(ISTEXT(H21:AL21),--$H$59:$AL$59)) -> 2 | BB21: =MAX(IF(ISTEXT(H21:AL21),--$H$59:$AL$59)) -> 27 | BC21: =IF(COUNTIF(H21:AL21,"А"),COUNTIF(H21:AL21,"А"),"") ->  | BD21: =MIN(IF(ISTEXT(H21:AL21),--$H$59:$AL$59)) -> 2 | BE21: =MAX(IF(ISTEXT(H21:AL21),--$H$59:$AL$59)) -> 27 | BF21: =IF(COUNTIF(H21:AL21,"К"),COUNTIF(H21:AL21,"К"),"") ->  | BG21: =MIN(IF(ISTEXT(H21:AL21),--$H$59:$AL$59)) -> 2 | BH21: =MAX(IF(ISTEXT(H21:AL21),--$H$59:$AL$59)) -> 27 | BI21: =IF(COUNTIF(H21:AL21,"Д"),COUNTIF(H21:AL21,"Д"),"") ->  | BJ21: =MIN(IF(ISTEXT(H21:AL21),--$H$59:$AL$59)) -> 2 | BK21: =MAX(IF(ISTEXT(H21:AL21),--$H$59:$AL$59)) -> 27 | BL21: =IF(COUNTIF(H21:AL21,"У"),COUNTIF(H21:AL21,"У"),"") ->  | BM21: =MIN(IF(ISTEXT(H21:AL21),--$H$59:$AL$59)) -> 2 | BN21: =MAX(IF(ISTEXT(H21:AL21),--$H$59:$AL$59)) -> 27
AM23: =COUNT(H24:AL24)+SUMPRODUCT((ТАБЛИЦА!$B$1:$B$28=H24:AL24)*ТАБЛИЦА!$C$1:$C$28) -> 0 | AN23: =SUMPRODUCT(--TEXT(SUBSTITUTE(SUBSTITUTE(H24:AL24,"я",""),"/",""),"#,#;;0;\0"))+SUM(H25:AL25) -> 0
C24: 5 | D24: Горбачёв Г.Е. | E24: 900 | F24: 4 | G24: такелажник | I24: Э | J24: Э | K24: Э | L24: Э | M24: Э | P24: Э | Q24: Э | R24: Э | W24: Э | X24: Э | Y24: Э | Z24: Э | AA24: Э | AD24: Э | AE24: Э | AF24: Э | AG24: Э | AH24: Э | AK24: Д/О | AO24: =SUM(((IFERROR(WEEKDAY(H$9:AL$9,2),)>5)+(ISNUMBER(MATCH(--H$9:AL$9,T$2:AD$2,))))*ISNUMBER(H24:AL24)) -> 0 | AP24: =SUM(((IFERROR(WEEKDAY(H$9:AL$9,2),)>5)+(ISNUMBER(MATCH(--H$9:AL$9,T$2:AD$2,))))*IF(ISNUMBER(H24:AL24),H24:AL24,)) -> 0 | AT24: =IF(COUNTIF(H24:AL24,"д/о"),COUNTIF(H24:AL24,"д/о"),"") -> 1 | AU24: =MIN(IF(ISTEXT(H24:AL24),--$H$59:$AL$59)) -> 2 | AV24: =MAX(IF(ISTEXT(H24:AL24),--$H$59:$AL$59)) -> 30 | AW24: =IF(COUNTIF(H24:AL24,"о"),COUNTIF(H24:AL24,"о"),"") ->  | AX24: =MIN(IF(ISTEXT(H24:AL24),--$H$59:$AL$59)) -> 2 | AY24: =MAX(IF(ISTEXT(H24:AL24),--$H$59:$AL$59)) -> 30 | AZ24: =IF(COUNTIF(H24:AL24,"Б"),COUNTIF(H24:AL24,"Б"),"") ->  | BA24: =MIN(IF(ISTEXT(H24:AL24),--$H$59:$AL$59)) -> 2 | BB24: =MAX(IF(ISTEXT(H24:AL24),--$H$59:$AL$59)) -> 30 | BC24: =IF(COUNTIF(H24:AL24,"А"),COUNTIF(H24:AL24,"А"),"") ->  | BD24: =MIN(IF(ISTEXT(H24:AL24),--$H$59:$AL$59)) -> 2 | BE24: =MAX(IF(ISTEXT(H24:AL24),--$H$59:$AL$59)) -> 30 | BF24: =IF(COUNTIF(H24:AL24,"К"),COUNTIF(H24:AL24,"К"),"") ->  | BG24: =MIN(IF(ISTEXT(H24:AL24),--$H$59:$AL$59)) -> 2 | BH24: =MAX(IF(ISTEXT(H24:AL24),--$H$59:$AL$59)) -> 30 | BI24: =IF(COUNTIF(H24:AL24,"Д"),COUNTIF(H24:AL24,"Д"),"") ->  | BJ24: =MIN(IF(ISTEXT(H24:AL24),--$H$59:$AL$59)) -> 2 | BK24: =MAX(IF(ISTEXT(H24:AL24),--$H$59:$AL$59)) -> 30 | BL24: =IF(COUNTIF(H24:AL24,"У"),COUNTIF(H24:AL24,"У"),"") ->  | BM24: =MIN(IF(ISTEXT(H24:AL24),--$H$59:$AL$59)) -> 2 | BN24: =MAX(IF(ISTEXT(H24:AL24),--$H$59:$AL$59)) -> 30
AH26: 1 | AM26: =COUNT(H27:AL27)+SUMPRODUCT((ТАБЛИЦА!$B$1:$B$28=H27:AL27)*ТАБЛИЦА!$C$1:$C$28) -> 15 | AN26: =SUMPRODUCT(--TEXT(SUBSTITUTE(SUBSTITUTE(H27:AL27,"я",""),"/",""),"#,#;;0;\0"))+SUM(H28:AL28) -> 130
C27: 6 | D27: Мошнегуца Г.М. | E27: 901 | F27: 5 | G27: такелажник | I27: Д/О | J27: Д/О | K27: Д/О | L27: Д/О | M27: Д/О | P27: 8 | Q27: 8 | R27: 7 | T27: 8 | U27: 8 | V27: 8 | W27: 8 | X27: 8 | Y27: 8 | Z27: 8 | AA27: 8 | AD27: Д | AE27: 8 | AF27: 8 | AG27: 8 | AH27: 7 | AK27: Д/О | AO27: =SUM(((IFERROR(WEEKDAY(H$9:AL$9,2),)>5)+(ISNUMBER(MATCH(--H$9:AL$9,T$2:AD$2,))))*ISNUMBER(H27:AL27)) -> 3 | AP27: =SUM(((IFERROR(WEEKDAY(H$9:AL$9,2),)>5)+(ISNUMBER(MATCH(--H$9:AL$9,T$2:AD$2,))))*IF(ISNUMBER(H27:AL27),H27:AL27,)) -> 24 | AT27: =IF(COUNTIF(H27:AL27,"д/о"),COUNTIF(H27:AL27,"д/о"),"") -> 6 | AU27: =MIN(IF(ISTEXT(H27:AL27),--$H$59:$AL$59)) -> 2 | AV27: =MAX(IF(ISTEXT(H27:AL27),--$H$59:$AL$59)) -> 30 | AW27: =IF(COUNTIF(H27:AL27,"о"),COUNTIF(H27:AL27,"о"),"") ->  | AX27: =MIN(IF(ISTEXT(H27:AL27),--$H$59:$AL$59)) -> 2 | AY27: =MAX(IF(ISTEXT(H27:AL27),--$H$59:$AL$59)) -> 30 | AZ27: =IF(COUNTIF(H27:AL27,"Б"),COUNTIF(H27:AL27,"Б"),"") ->  | BA27: =MIN(IF(ISTEXT(H27:AL27),--$H$59:$AL$59)) -> 2 | BB27: =MAX(IF(ISTEXT(H27:AL27),--$H$59:$AL$59)) -> 30 | BC27: =IF(COUNTIF(H27:AL27,"А"),COUNTIF(H27:AL27,"А"),"") ->  | BD27: =MIN(IF(ISTEXT(H27:AL27),--$H$59:$AL$59)) -> 2 | BE27: =MAX(IF(ISTEXT(H27:AL27),--$H$59:$AL$59)) -> 30 | BF27: =IF(COUNTIF(H27:AL27,"К"),COUNTIF(H27:AL27,"К"),"") ->  | BG27: =MIN(IF(ISTEXT(H27:AL27),--$H$59:$AL$59)) -> 2 | BH27: =MAX(IF(ISTEXT(H27:AL27),--$H$59:$AL$59)) -> 30 | BI27: =IF(COUNTIF(H27:AL27,"Д"),COUNTIF(H27:AL27,"Д"),"") -> 1 | BJ27: =MIN(IF(ISTEXT(H27:AL27),--$H$59:$AL$59)) -> 2 | BK27: =MAX(IF(ISTEXT(H27:AL27),--$H$59:$AL$59)) -> 30 | BL27: =IF(COUNTIF(H27:AL27,"У"),COUNTIF(H27:AL27,"У"),"") ->  | BM27: =MIN(IF(ISTEXT(H27:AL27),--$H$59:$AL$59)) -> 2 | BN27: =MAX(IF(ISTEXT(H27:AL27),--$H$59:$AL$59)) -> 30
P28: 4 | Q28: 4 | Y28: 4
AM29: =COUNT(H30:AL30)+SUMPRODUCT((ТАБЛИЦА!$B$1:$B$28=H30:AL30)*ТАБЛИЦА!$C$1:$C$28) -> 0 | AN29: =SUMPRODUCT(--TEXT(SUBSTITUTE(SUBSTITUTE(H30:AL30,"я",""),"/",""),"#,#;;0;\0"))+SUM(H31:AL31) -> 0
C30: 7 | D30: Коновалов А.Г. | E30: 902 | F30: 5 | G30: такелажник | I30: О | J30: О | K30: О | L30: О | M30: О | P30: О | Q30: О | R30: О | W30: О | X30: О | Y30: О | Z30: О | AA30: О | AD30: О | AE30: О | AF30: О | AG30: О | AH30: О | AK30: О | AO30: =SUM(((IFERROR(WEEKDAY(H$9:AL$9,2),)>5)+(ISNUMBER(MATCH(--H$9:AL$9,T$2:AD$2,))))*ISNUMBER(H30:AL30)) -> 0 | AP30: =SUM(((IFERROR(WEEKDAY(H$9:AL$9,2),)>5)+(ISNUMBER(MATCH(--H$9:AL$9,T$2:AD$2,))))*IF(ISNUMBER(H30:AL30),H30:AL30,)) -> 0 | AT30: =IF(COUNTIF(H30:AL30,"д/о"),COUNTIF(H30:AL30,"д/о"),"") ->  | AU30: =MIN(IF(ISTEXT(H30:AL30),--$H$59:$AL$59)) -> 2 | AV30: =MAX(IF(ISTEXT(H30:AL30),--$H$59:$AL$59)) -> 30 | AW30: =IF(COUNTIF(H30:AL30,"о"),COUNTIF(H30:AL30,"о"),"") -> 19 | AX30: =MIN(IF(ISTEXT(H30:AL30),--$H$59:$AL$59)) -> 2 | AY30: =MAX(IF(ISTEXT(H30:AL30),--$H$59:$AL$59)) -> 30 | AZ30: =IF(COUNTIF(H30:AL30,"Б"),COUNTIF(H30:AL30,"Б"),"") ->  | BA30: =MIN(IF(ISTEXT(H30:AL30),--$H$59:$AL$59)) -> 2 | BB30: =MAX(IF(ISTEXT(H30:AL30),--$H$59:$AL$59)) -> 30 | BC30: =IF(COUNTIF(H30:AL30,"А"),COUNTIF(H30:AL30,"А"),"") ->  | BD30: =MIN(IF(ISTEXT(H30:AL30),--$H$59:$AL$59)) -> 2 | BE30: =MAX(IF(ISTEXT(H30:AL30),--$H$59:$AL$59)) -> 30 | BF30: =IF(COUNTIF(H30:AL30,"К"),COUNTIF(H30:AL30,"К"),"") ->  | BG30: =MIN(IF(ISTEXT(H30:AL30),--$H$59:$AL$59)) -> 2 | BH30: =MAX(IF(ISTEXT(H30:AL30),--$H$59:$AL$59)) -> 30 | BI30: =IF(COUNTIF(H30:AL30,"Д"),COUNTIF(H30:AL30,"Д"),"") ->  | BJ30: =MIN(IF(ISTEXT(H30:AL30),--$H$59:$AL$59)) -> 2 | BK30: =MAX(IF(ISTEXT(H30:AL30),--$H$59:$AL$59)) -> 30 | BL30: =IF(COUNTIF(H30:AL30,"У"),COUNTIF(H30:AL30,"У"),"") ->  | BM30: =MIN(IF(ISTEXT(H30:AL30),--$H$59:$AL$59)) -> 2 | BN30: =MAX(IF(ISTEXT(H30:AL30),--$H$59:$AL$59)) -> 30
AM32: =COUNT(H33:AL33)+SUMPRODUCT((ТАБЛИЦА!$B$1:$B$28=H33:AL33)*ТАБЛИЦА!$C$1:$C$28) -> 15 | AN32: =SUMPRODUCT(--TEXT(SUBSTITUTE(SUBSTITUTE(H33:AL33,"я",""),"/",""),"#,#;;0;\0"))+SUM(H34:AL34) -> 123
C33: 8 | D33: Стасюк И.И. | E33: 905 | F33: 5 | G33: такелажник | I33: 8 | J33: 8 | K33: Д/О | L33: 8 | M33: 8 | N33: 8 | O33: 8 | P33: 8 | Q33: 8 | R33: 7 | W33: К | X33: К | Y33: К | Z33: К | AA33: К | AB33: 8 | AD33: 8 | AE33: 8 | AF33: Д/О | AG33: 8 | AH33: 8 | AK33: 8 | AO33: =SUM(((IFERROR(WEEKDAY(H$9:AL$9,2),)>5)+(ISNUMBER(MATCH(--H$9:AL$9,T$2:AD$2,))))*ISNUMBER(H33:AL33)) -> 3 | AP33: =SUM(((IFERROR(WEEKDAY(H$9:AL$9,2),)>5)+(ISNUMBER(MATCH(--H$9:AL$9,T$2:AD$2,))))*IF(ISNUMBER(H33:AL33),H33:AL33,)) -> 24 | AT33: =IF(COUNTIF(H33:AL33,"д/о"),COUNTIF(H33:AL33,"д/о"),"") -> 2 | AU33: =MIN(IF(ISTEXT(H33:AL33),--$H$59:$AL$59)) -> 4 | AV33: =MAX(IF(ISTEXT(H33:AL33),--$H$59:$AL$59)) -> 25 | AW33: =IF(COUNTIF(H33:AL33,"о"),COUNTIF(H33:AL33,"о"),"") ->  | AX33: =MIN(IF(ISTEXT(H33:AL33),--$H$59:$AL$59)) -> 4 | AY33: =MAX(IF(ISTEXT(H33:AL33),--$H$59:$AL$59)) -> 25 | AZ33: =IF(COUNTIF(H33:AL33,"Б"),COUNTIF(H33:AL33,"Б"),"") ->  | BA33: =MIN(IF(ISTEXT(H33:AL33),--$H$59:$AL$59)) -> 4 | BB33: =MAX(IF(ISTEXT(H33:AL33),--$H$59:$AL$59)) -> 25 | BC33: =IF(COUNTIF(H33:AL33,"А"),COUNTIF(H33:AL33,"А"),"") ->  | BD33: =MIN(IF(ISTEXT(H33:AL33),--$H$59:$AL$59)) -> 4 | BE33: =MAX(IF(ISTEXT(H33:AL33),--$H$59:$AL$59)) -> 25 | BF33: =IF(COUNTIF(H33:AL33,"К"),COUNTIF(H33:AL33,"К"),"") -> 5 | BG33: =MIN(IF(ISTEXT(H33:AL33),--$H$59:$AL$59)) -> 4 | BH33: =MAX(IF(ISTEXT(H33:AL33),--$H$59:$AL$59)) -> 25 | BI33: =IF(COUNTIF(H33:AL33,"Д"),COUNTIF(H33:AL33,"Д"),"") ->  | BJ33: =MIN(IF(ISTEXT(H33:AL33),--$H$59:$AL$59)) -> 4 | BK33: =MAX(IF(ISTEXT(H33:AL33),--$H$59:$AL$59)) -> 25 | BL33: =IF(COUNTIF(H33:AL33,"У"),COUNTIF(H33:AL33,"У"),"") ->  | BM33: =MIN(IF(ISTEXT(H33:AL33),--$H$59:$AL$59)) -> 4 | BN33: =MAX(IF(ISTEXT(H33:AL33),--$H$59:$AL$59)) -> 25
M34: 4
AM35: =COUNT(H36:AL36)+SUMPRODUCT((ТАБЛИЦА!$F$1:$F$28=H36:AL36)*ТАБЛИЦА!$G$1:$G$28) -> 0 | AN35: =SUMPRODUCT(--TEXT(SUBSTITUTE(SUBSTITUTE(H36:AL36,"я",""),"/",""),"#,#;;0;\0"))+SUM(H37:AL37) -> 0
C36: 9 | D36: Кузьмина И.В. | E36: 906 | F36: 3 | G36: такелажник | I36: О | J36: О | K36: О | L36: О | M36: О | P36: О | Q36: О | R36: О | W36: О | X36: О | Y36: О | Z36: О | AA36: О | AD36: О | AE36: О | AF36: О | AG36: О | AH36: О | AK36: О | AO36: =SUM(((IFERROR(WEEKDAY(H$9:AL$9,2),)>5)+(ISNUMBER(MATCH(--H$9:AL$9,T$2:AD$2,))))*ISNUMBER(H36:AL36)) -> 0 | AP36: =SUM(((IFERROR(WEEKDAY(H$9:AL$9,2),)>5)+(ISNUMBER(MATCH(--H$9:AL$9,T$2:AD$2,))))*IF(ISNUMBER(H36:AL36),H36:AL36,)) -> 0 | AT36: =IF(COUNTIF(H36:AL36,"д/о"),COUNTIF(H36:AL36,"д/о"),"") ->  | AU36: =MIN(IF(ISTEXT(H36:AL36),--$H$59:$AL$59)) -> 2 | AV36: =MAX(IF(ISTEXT(H36:AL36),--$H$59:$AL$59)) -> 30 | AW36: =IF(COUNTIF(H36:AL36,"о"),COUNTIF(H36:AL36,"о"),"") -> 19 | AX36: =MIN(IF(ISTEXT(H36:AL36),--$H$59:$AL$59)) -> 2 | AY36: =MAX(IF(ISTEXT(H36:AL36),--$H$59:$AL$59)) -> 30 | AZ36: =IF(COUNTIF(H36:AL36,"Б"),COUNTIF(H36:AL36,"Б"),"") ->  | BA36: =MIN(IF(ISTEXT(H36:AL36),--$H$59:$AL$59)) -> 2 | BB36: =MAX(IF(ISTEXT(H36:AL36),--$H$59:$AL$59)) -> 30 | BC36: =IF(COUNTIF(H36:AL36,"А"),COUNTIF(H36:AL36,"А"),"") ->  | BD36: =MIN(IF(ISTEXT(H36:AL36),--$H$59:$AL$59)) -> 2 | BE36: =MAX(IF(ISTEXT(H36:AL36),--$H$59:$AL$59)) -> 30 | BF36: =IF(COUNTIF(H36:AL36,"К"),COUNTIF(H36:AL36,"К"),"") ->  | BG36: =MIN(IF(ISTEXT(H36:AL36),--$H$59:$AL$59)) -> 2 | BH36: =MAX(IF(ISTEXT(H36:AL36),--$H$59:$AL$59)) -> 30 | BI36: =IF(COUNTIF(H36:AL36,"Д"),COUNTIF(H36:AL36,"Д"),"") ->  | BJ36: =MIN(IF(ISTEXT(H36:AL36),--$H$59:$AL$59)) -> 2 | BK36: =MAX(IF(ISTEXT(H36:AL36),--$H$59:$AL$59)) -> 30 | BL36: =IF(COUNTIF(H36:AL36,"У"),COUNTIF(H36:AL36,"У"),"") ->  | BM36: =MIN(IF(ISTEXT(H36:AL36),--$H$59:$AL$59)) -> 2 | BN36: =MAX(IF(ISTEXT(H36:AL36),--$H$59:$AL$59)) -> 30
AH38: 1 | AM38: =COUNT(H39:AL39)+SUMPRODUCT((ТАБЛИЦА!$B$1:$B$28=H39:AL39)*ТАБЛИЦА!$C$1:$C$28) -> 16 | AN38: =SUMPRODUCT(--TEXT(SUBSTITUTE(SUBSTITUTE(H39:AL39,"я",""),"/",""),"#,#;;0;\0"))+SUM(H40:AL40) -> 126
C39: 10 | D39: Зиновьев Н.Н. | E39: 907 | F39: 5 | G39: такелажник | I39: О | J39: О | K39: О | L39: 8 | M39: 8 | P39: 8 | Q39: 8 | R39: 7 | W39: 8 | X39: 8 | Y39: 8 | Z39: 8 | AA39: 8 | AD39: 8 | AE39: 8 | AF39: 8 | AG39: 8 | AH39: 7 | AK39: 8 | AO39: =SUM(((IFERROR(WEEKDAY(H$9:AL$9,2),)>5)+(ISNUMBER(MATCH(--H$9:AL$9,T$2:AD$2,))))*ISNUMBER(H39:AL39)) -> 0 | AP39: =SUM(((IFERROR(WEEKDAY(H$9:AL$9,2),)>5)+(ISNUMBER(MATCH(--H$9:AL$9,T$2:AD$2,))))*IF(ISNUMBER(H39:AL39),H39:AL39,)) -> 0 | AT39: =IF(COUNTIF(H39:AL39,"д/о"),COUNTIF(H39:AL39,"д/о"),"") ->  | AU39: =MIN(IF(ISTEXT(H39:AL39),--$H$59:$AL$59)) -> 2 | AV39: =MAX(IF(ISTEXT(H39:AL39),--$H$59:$AL$59)) -> 4 | AW39: =IF(COUNTIF(H39:AL39,"о"),COUNTIF(H39:AL39,"о"),"") -> 3 | AX39: =MIN(IF(ISTEXT(H39:AL39),--$H$59:$AL$59)) -> 2 | AY39: =MAX(IF(ISTEXT(H39:AL39),--$H$59:$AL$59)) -> 4 | AZ39: =IF(COUNTIF(H39:AL39,"Б"),COUNTIF(H39:AL39,"Б"),"") ->  | BA39: =MIN(IF(ISTEXT(H39:AL39),--$H$59:$AL$59)) -> 2 | BB39: =MAX(IF(ISTEXT(H39:AL39),--$H$59:$AL$59)) -> 4 | BC39: =IF(COUNTIF(H39:AL39,"А"),COUNTIF(H39:AL39,"А"),"") ->  | BD39: =MIN(IF(ISTEXT(H39:AL39),--$H$59:$AL$59)) -> 2 | BE39: =MAX(IF(ISTEXT(H39:AL39),--$H$59:$AL$59)) -> 4 | BF39: =IF(COUNTIF(H39:AL39,"К"),COUNTIF(H39:AL39,"К"),"") ->  | BG39: =MIN(IF(ISTEXT(H39:AL39),--$H$59:$AL$59)) -> 2 | BH39: =MAX(IF(ISTEXT(H39:AL39),--$H$59:$AL$59)) -> 4 | BI39: =IF(COUNTIF(H39:AL39,"Д"),COUNTIF(H39:AL39,"Д"),"") ->  | BJ39: =MIN(IF(ISTEXT(H39:AL39),--$H$59:$AL$59)) -> 2 | BK39: =MAX(IF(ISTEXT(H39:AL39),--$H$59:$AL$59)) -> 4 | BL39: =IF(COUNTIF(H39:AL39,"У"),COUNTIF(H39:AL39,"У"),"") ->  | BM39: =MIN(IF(ISTEXT(H39:AL39),--$H$59:$AL$59)) -> 2 | BN39: =MAX(IF(ISTEXT(H39:AL39),--$H$59:$AL$59)) -> 4
AM41: =COUNT(H42:AL42)+SUMPRODUCT((ТАБЛИЦА!$B$1:$B$28=H42:AL42)*ТАБЛИЦА!$C$1:$C$28) -> 5 | AN41: =SUMPRODUCT(--TEXT(SUBSTITUTE(SUBSTITUTE(H42:AL42,"я",""),"/",""),"#,#;;0;\0"))+SUM(H43:AL43) -> 40
C42: 11 | D42: Парфёнов А.В. | E42: 908 | F42: 3 | G42: такелажник | I42: Б | J42: Б | K42: Б | L42: Б | M42: Б | P42: Б | Q42: Б | R42: Б | W42: Б | X42: Б | Y42: Б | Z42: Б | AA42: Б | AD42: 8 | AE42: А | AF42: 8 | AG42: 8 | AH42: 8 | AK42: 8 | AO42: =SUM(((IFERROR(WEEKDAY(H$9:AL$9,2),)>5)+(ISNUMBER(MATCH(--H$9:AL$9,T$2:AD$2,))))*ISNUMBER(H42:AL42)) -> 0 | AP42: =SUM(((IFERROR(WEEKDAY(H$9:AL$9,2),)>5)+(ISNUMBER(MATCH(--H$9:AL$9,T$2:AD$2,))))*IF(ISNUMBER(H42:AL42),H42:AL42,)) -> 0 | AT42: =IF(COUNTIF(H42:AL42,"д/о"),COUNTIF(H42:AL42,"д/о"),"") ->  | AU42: =MIN(IF(ISTEXT(H42:AL42),--$H$59:$AL$59)) -> 2 | AV42: =MAX(IF(ISTEXT(H42:AL42),--$H$59:$AL$59)) -> 24 | AW42: =IF(COUNTIF(H42:AL42,"о"),COUNTIF(H42:AL42,"о"),"") ->  | AX42: =MIN(IF(ISTEXT(H42:AL42),--$H$59:$AL$59)) -> 2 | AY42: =MAX(IF(ISTEXT(H42:AL42),--$H$59:$AL$59)) -> 24 | AZ42: =IF(COUNTIF(H42:AL42,"Б"),COUNTIF(H42:AL42,"Б"),"") -> 13 | BA42: =MIN(IF(ISTEXT(H42:AL42),--$H$59:$AL$59)) -> 2 | BB42: =MAX(IF(ISTEXT(H42:AL42),--$H$59:$AL$59)) -> 24 | BC42: =IF(COUNTIF(H42:AL42,"А"),COUNTIF(H42:AL42,"А"),"") -> 1 | BD42: =MIN(IF(ISTEXT(H42:AL42),--$H$59:$AL$59)) -> 2 | BE42: =MAX(IF(ISTEXT(H42:AL42),--$H$59:$AL$59)) -> 24 | BF42: =IF(COUNTIF(H42:AL42,"К"),COUNTIF(H42:AL42,"К"),"") ->  | BG42: =MIN(IF(ISTEXT(H42:AL42),--$H$59:$AL$59)) -> 2 | BH42: =MAX(IF(ISTEXT(H42:AL42),--$H$59:$AL$59)) -> 24 | BI42: =IF(COUNTIF(H42:AL42,"Д"),COUNTIF(H42:AL42,"Д"),"") ->  | BJ42: =MIN(IF(ISTEXT(H42:AL42),--$H$59:$AL$59)) -> 2 | BK42: =MAX(IF(ISTEXT(H42:AL42),--$H$59:$AL$59)) -> 24 | BL42: =IF(COUNTIF(H42:AL42,"У"),COUNTIF(H42:AL42,"У"),"") ->  | BM42: =MIN(IF(ISTEXT(H42:AL42),--$H$59:$AL$59)) -> 2 | BN42: =MAX(IF(ISTEXT(H42:AL42),--$H$59:$AL$59)) -> 24
AM44: =COUNT(H45:AL45)+SUMPRODUCT((ТАБЛИЦА!$F$1:$F$28=H45:AL45)*ТАБЛИЦА!$G$1:$G$28) -> 6 | AN44: =SUMPRODUCT(--TEXT(SUBSTITUTE(SUBSTITUTE(H45:AL45,"я",""),"/",""),"#,#;;0;\0"))+SUM(H46:AL46) -> 44
C45: 12 | D45: Московченко О.А. | E45: 909 | F45: 4 | G45: такелажник | I45: 8 | J45: 7 | K45: 7 | L45: 7 | M45: 7 | P45: 8 | Q45: О | R45: О | W45: О | X45: О | Y45: О | Z45: О | AA45: О | AD45: О | AE45: О | AF45: О | AG45: О | AH45: О | AK45: О | AO45: =SUM(((IFERROR(WEEKDAY(H$9:AL$9,2),)>5)+(ISNUMBER(MATCH(--H$9:AL$9,T$2:AD$2,))))*ISNUMBER(H45:AL45)) -> 0 | AP45: =SUM(((IFERROR(WEEKDAY(H$9:AL$9,2),)>5)+(ISNUMBER(MATCH(--H$9:AL$9,T$2:AD$2,))))*IF(ISNUMBER(H45:AL45),H45:AL45,)) -> 0 | AT45: =IF(COUNTIF(H45:AL45,"д/о"),COUNTIF(H45:AL45,"д/о"),"") ->  | AU45: =MIN(IF(ISTEXT(H45:AL45),--$H$59:$AL$59)) -> 10 | AV45: =MAX(IF(ISTEXT(H45:AL45),--$H$59:$AL$59)) -> 30 | AW45: =IF(COUNTIF(H45:AL45,"о"),COUNTIF(H45:AL45,"о"),"") -> 13 | AX45: =MIN(IF(ISTEXT(H45:AL45),--$H$59:$AL$59)) -> 10 | AY45: =MAX(IF(ISTEXT(H45:AL45),--$H$59:$AL$59)) -> 30 | AZ45: =IF(COUNTIF(H45:AL45,"Б"),COUNTIF(H45:AL45,"Б"),"") ->  | BA45: =MIN(IF(ISTEXT(H45:AL45),--$H$59:$AL$59)) -> 10 | BB45: =MAX(IF(ISTEXT(H45:AL45),--$H$59:$AL$59)) -> 30 | BC45: =IF(COUNTIF(H45:AL45,"А"),COUNTIF(H45:AL45,"А"),"") ->  | BD45: =MIN(IF(ISTEXT(H45:AL45),--$H$59:$AL$59)) -> 10 | BE45: =MAX(IF(ISTEXT(H45:AL45),--$H$59:$AL$59)) -> 30 | BF45: =IF(COUNTIF(H45:AL45,"К"),COUNTIF(H45:AL45,"К"),"") ->  | BG45: =MIN(IF(ISTEXT(H45:AL45),--$H$59:$AL$59)) -> 10 | BH45: =MAX(IF(ISTEXT(H45:AL45),--$H$59:$AL$59)) -> 30 | BI45: =IF(COUNTIF(H45:AL45,"Д"),COUNTIF(H45:AL45,"Д"),"") ->  | BJ45: =MIN(IF(ISTEXT(H45:AL45),--$H$59:$AL$59)) -> 10 | BK45: =MAX(IF(ISTEXT(H45:AL45),--$H$59:$AL$59)) -> 30 | BL45: =IF(COUNTIF(H45:AL45,"У"),COUNTIF(H45:AL45,"У"),"") ->  | BM45: =MIN(IF(ISTEXT(H45:AL45),--$H$59:$AL$59)) -> 10 | BN45: =MAX(IF(ISTEXT(H45:AL45),--$H$59:$AL$59)) -> 30
AM47: =COUNT(H48:AL48)+SUMPRODUCT((ТАБЛИЦА!$B$1:$B$28=H48:AL48)*ТАБЛИЦА!$C$1:$C$28) -> 2 | AN47: =SUMPRODUCT(--TEXT(SUBSTITUTE(SUBSTITUTE(H48:AL48,"я",""),"/",""),"#,#;;0;\0"))+SUM(H49:AL49) -> 16
C48: 13 | D48: Гундаков А.А. | E48: 910 | F48: 3 | G48: такелажник | I48: Б | J48: Б | K48: Б | L48: Б | M48: Б | P48: Б | Q48: Б | R48: Б | W48: Б | X48: Б | Y48: Б | Z48: Б | AA48: Б | AD48: Б | AE48: Б | AF48: Б | AG48: Б | AH48: 8 | AK48: 8 | AO48: =SUM(((IFERROR(WEEKDAY(H$9:AL$9,2),)>5)+(ISNUMBER(MATCH(--H$9:AL$9,T$2:AD$2,))))*ISNUMBER(H48:AL48)) -> 0 | AP48: =SUM(((IFERROR(WEEKDAY(H$9:AL$9,2),)>5)+(ISNUMBER(MATCH(--H$9:AL$9,T$2:AD$2,))))*IF(ISNUMBER(H48:AL48),H48:AL48,)) -> 0 | AT48: =IF(COUNTIF(H48:AL48,"д/о"),COUNTIF(H48:AL48,"д/о"),"") ->  | AU48: =MIN(IF(ISTEXT(H48:AL48),--$H$59:$AL$59)) -> 2 | AV48: =MAX(IF(ISTEXT(H48:AL48),--$H$59:$AL$59)) -> 26 | AW48: =IF(COUNTIF(H48:AL48,"о"),COUNTIF(H48:AL48,"о"),"") ->  | AX48: =MIN(IF(ISTEXT(H48:AL48),--$H$59:$AL$59)) -> 2 | AY48: =MAX(IF(ISTEXT(H48:AL48),--$H$59:$AL$59)) -> 26 | AZ48: =IF(COUNTIF(H48:AL48,"Б"),COUNTIF(H48:AL48,"Б"),"") -> 17 | BA48: =MIN(IF(ISTEXT(H48:AL48),--$H$59:$AL$59)) -> 2 | BB48: =MAX(IF(ISTEXT(H48:AL48),--$H$59:$AL$59)) -> 26 | BC48: =IF(COUNTIF(H48:AL48,"А"),COUNTIF(H48:AL48,"А"),"") ->  | BD48: =MIN(IF(ISTEXT(H48:AL48),--$H$59:$AL$59)) -> 2 | BE48: =MAX(IF(ISTEXT(H48:AL48),--$H$59:$AL$59)) -> 26 | BF48: =IF(COUNTIF(H48:AL48,"К"),COUNTIF(H48:AL48,"К"),"") ->  | BG48: =MIN(IF(ISTEXT(H48:AL48),--$H$59:$AL$59)) -> 2 | BH48: =MAX(IF(ISTEXT(H48:AL48),--$H$59:$AL$59)) -> 26 | BI48: =IF(COUNTIF(H48:AL48,"Д"),COUNTIF(H48:AL48,"Д"),"") ->  | BJ48: =MIN(IF(ISTEXT(H48:AL48),--$H$59:$AL$59)) -> 2 | BK48: =MAX(IF(ISTEXT(H48:AL48),--$H$59:$AL$59)) -> 26 | BL48: =IF(COUNTIF(H48:AL48,"У"),COUNTIF(H48:AL48,"У"),"") ->  | BM48: =MIN(IF(ISTEXT(H48:AL48),--$H$59:$AL$59)) -> 2 | BN48: =MAX(IF(ISTEXT(H48:AL48),--$H$59:$AL$59)) -> 26
AM50: =COUNT(H51:AL51)+SUMPRODUCT((ТАБЛИЦА!$B$1:$B$28=H51:AL51)*ТАБЛИЦА!$C$1:$C$28) -> 22.93 | AN50: =SUMPRODUCT(--TEXT(SUBSTITUTE(SUBSTITUTE(H51:AL51,"я",""),"/",""),"#,#;;0;\0"))+SUM(H52:AL52) -> 183.5
C51: 14 | D51: Румянцев Д.А. | E51: 911 | F51: 4 | G51: такелажник | I51: 8 | J51: 8 | K51: 8 | L51: 8 | M51: 8 | N51: 8 | P51: 8 | Q51: 8 | R51: 6/я | T51: 8 | U51: 8 | W51: 8 | X51: 8 | Y51: 8 | Z51: 6/я | AA51: 8 | AB51: 8 | AD51: 3,5/я | AE51: 8 | AF51: 8 | AG51: 8 | AH51: 8 | AI51: 8 | AK51: 8 | AO51: =SUM(((IFERROR(WEEKDAY(H$9:AL$9,2),)>5)+(ISNUMBER(MATCH(--H$9:AL$9,T$2:AD$2,))))*ISNUMBER(H51:AL51)) -> 5 | AP51: =SUM(((IFERROR(WEEKDAY(H$9:AL$9,2),)>5)+(ISNUMBER(MATCH(--H$9:AL$9,T$2:AD$2,))))*IF(ISNUMBER(H51:AL51),H51:AL51,)) -> 40 | AT51: =IF(COUNTIF(H51:AL51,"д/о"),COUNTIF(H51:AL51,"д/о"),"") ->  | AU51: =MIN(IF(ISTEXT(H51:AL51),--$H$59:$AL$59)) -> 11 | AV51: =MAX(IF(ISTEXT(H51:AL51),--$H$59:$AL$59)) -> 23 | AW51: =IF(COUNTIF(H51:AL51,"о"),COUNTIF(H51:AL51,"о"),"") ->  | AX51: =MIN(IF(ISTEXT(H51:AL51),--$H$59:$AL$59)) -> 11 | AY51: =MAX(IF(ISTEXT(H51:AL51),--$H$59:$AL$59)) -> 23 | AZ51: =IF(COUNTIF(H51:AL51,"Б"),COUNTIF(H51:AL51,"Б"),"") ->  | BA51: =MIN(IF(ISTEXT(H51:AL51),--$H$59:$AL$59)) -> 11 | BB51: =MAX(IF(ISTEXT(H51:AL51),--$H$59:$AL$59)) -> 23 | BC51: =IF(COUNTIF(H51:AL51,"А"),COUNTIF(H51:AL51,"А"),"") ->  | BD51: =MIN(IF(ISTEXT(H51:AL51),--$H$59:$AL$59)) -> 11 | BE51: =MAX(IF(ISTEXT(H51:AL51),--$H$59:$AL$59)) -> 23 | BF51: =IF(COUNTIF(H51:AL51,"К"),COUNTIF(H51:AL51,"К"),"") ->  | BG51: =MIN(IF(ISTEXT(H51:AL51),--$H$59:$AL$59)) -> 11 | BH51: =MAX(IF(ISTEXT(H51:AL51),--$H$59:$AL$59)) -> 23 | BI51: =IF(COUNTIF(H51:AL51,"Д"),COUNTIF(H51:AL51,"Д"),"") ->  | BJ51: =MIN(IF(ISTEXT(H51:AL51),--$H$59:$AL$59)) -> 11 | BK51: =MAX(IF(ISTEXT(H51:AL51),--$H$59:$AL$59)) -> 23 | BL51: =IF(COUNTIF(H51:AL51,"У"),COUNTIF(H51:AL51,"У"),"") ->  | BM51: =MIN(IF(ISTEXT(H51:AL51),--$H$59:$AL$59)) -> 11 | BN51: =MAX(IF(ISTEXT(H51:AL51),--$H$59:$AL$59)) -> 23 | BP51: 2.Как сделать чтобы не ститал если (я/6;где взято увольнен)
BP52: Так-как он видет (ТЕКСТ "Я")
AM53: =COUNT(H54:AL54)+SUMPRODUCT((ТАБЛИЦА!$B$1:$B$28=H54:AL54)*ТАБЛИЦА!$C$1:$C$28) -> 24 | AN53: =SUMPRODUCT(--TEXT(SUBSTITUTE(SUBSTITUTE(H54:AL54,"я",""),"/",""),"#,#;;0;\0"))+SUM(H55:AL55) -> 168
B54: 802 | C54: 15 | D54: Остапчик А.Б. | E54: 914 | F54: 5 | G54: такелажник | I54: 7 | J54: 7 | K54: 7 | L54: 7 | M54: 7 | N54: 7 | P54: Д/О | Q54: 7 | R54: 6 | T54: 7 | U54: 7 | V54: 8 | W54: 7 | X54: 7 | Y54: 7 | Z54: 7 | AA54: 7 | AB54: 7 | AD54: 7 | AE54: 7 | AF54: 7 | AG54: 7 | AH54: 7 | AI54: 7 | AK54: 7 | AO54: =SUM(((IFERROR(WEEKDAY(H$9:AL$9,2),)>5)+(ISNUMBER(MATCH(--H$9:AL$9,T$2:AD$2,))))*ISNUMBER(H54:AL54)) -> 6 | AP54: =SUM(((IFERROR(WEEKDAY(H$9:AL$9,2),)>5)+(ISNUMBER(MATCH(--H$9:AL$9,T$2:AD$2,))))*IF(ISNUMBER(H54:AL54),H54:AL54,)) -> 43 | AT54: =IF(COUNTIF(H54:AL54,"д/о"),COUNTIF(H54:AL54,"д/о"),"") -> 1 | AU54: =MIN(IF(ISTEXT(H54:AL54),--$H$59:$AL$59)) -> 9 | AV54: =MAX(IF(ISTEXT(H54:AL54),--$H$59:$AL$59)) -> 9 | AW54: =IF(COUNTIF(H54:AL54,"о"),COUNTIF(H54:AL54,"о"),"") ->  | AX54: =MIN(IF(ISTEXT(H54:AL54),--$H$59:$AL$59)) -> 9 | AY54: =MAX(IF(ISTEXT(H54:AL54),--$H$59:$AL$59)) -> 9 | AZ54: =IF(COUNTIF(H54:AL54,"Б"),COUNTIF(H54:AL54,"Б"),"") ->  | BA54: =MIN(IF(ISTEXT(H54:AL54),--$H$59:$AL$59)) -> 9 | BB54: =MAX(IF(ISTEXT(H54:AL54),--$H$59:$AL$59)) -> 9 | BC54: =IF(COUNTIF(H54:AL54,"А"),COUNTIF(H54:AL54,"А"),"") ->  | BD54: =MIN(IF(ISTEXT(H54:AL54),--$H$59:$AL$59)) -> 9 | BE54: =MAX(IF(ISTEXT(H54:AL54),--$H$59:$AL$59)) -> 9 | BF54: =IF(COUNTIF(H54:AL54,"К"),COUNTIF(H54:AL54,"К"),"") ->  | BG54: =MIN(IF(ISTEXT(H54:AL54),--$H$59:$AL$59)) -> 9 | BH54: =MAX(IF(ISTEXT(H54:AL54),--$H$59:$AL$59)) -> 9 | BI54: =IF(COUNTIF(H54:AL54,"Д"),COUNTIF(H54:AL54,"Д"),"") ->  | BJ54: =MIN(IF(ISTEXT(H54:AL54),--$H$59:$AL$59)) -> 9 | BK54: =MAX(IF(ISTEXT(H54:AL54),--$H$59:$AL$59)) -> 9 | BL54: =IF(COUNTIF(H54:AL54,"У"),COUNTIF(H54:AL54,"У"),"") ->  | BM54: =MIN(IF(ISTEXT(H54:AL54),--$H$59:$AL$59)) -> 9 | BN54: =MAX(IF(ISTEXT(H54:AL54),--$H$59:$AL$59)) -> 9
AM56: =COUNT(H57:AL57)+SUMPRODUCT((ТАБЛИЦА!$B$1:$B$28=H57:AL57)*ТАБЛИЦА!$C$1:$C$28) -> 24 | AN56: =SUMPRODUCT(--TEXT(SUBSTITUTE(SUBSTITUTE(H57:AL57,"я",""),"/",""),"#,#;;0;\0"))+SUM(H58:AL58) -> 172
B57: 203 | C57: 16 | D57: Челпанников С.Ю. | E57: 918 | F57: 5 | G57: такелажник | I57: 7 | J57: 7 | K57: 7 | L57: Д/О | M57: 7 | N57: 7 | O57: 8 | P57: 7 | Q57: 7 | R57: Д/О | T57: 8 | U57: 8 | V57: 8 | W57: 7 | X57: 7 | Y57: 7 | Z57: 7 | AA57: 7 | AB57: 7 | AD57: 7 | AE57: 7 | AF57: 7 | AG57: 7 | AH57: 7 | AI57: 7 | AK57: 7 | AO57: =SUM(((IFERROR(WEEKDAY(H$9:AL$9,2),)>5)+(ISNUMBER(MATCH(--H$9:AL$9,T$2:AD$2,))))*ISNUMBER(H57:AL57)) -> 7 | AP57: =SUM(((IFERROR(WEEKDAY(H$9:AL$9,2),)>5)+(ISNUMBER(MATCH(--H$9:AL$9,T$2:AD$2,))))*IF(ISNUMBER(H57:AL57),H57:AL57,)) -> 53 | AT57: =IF(COUNTIF(H57:AL57,"д/о"),COUNTIF(H57:AL57,"д/о"),"") -> 2 | AU57: =MIN(IF(ISTEXT(H57:AL57),--$H$59:$AL$59)) -> 5 | AV57: =MAX(IF(ISTEXT(H57:AL57),--$H$59:$AL$59)) -> 11 | AW57: =IF(COUNTIF(H57:AL57,"о"),COUNTIF(H57:AL57,"о"),"") ->  | AX57: =MIN(IF(ISTEXT(H57:AL57),--$H$59:$AL$59)) -> 5 | AY57: =MAX(IF(ISTEXT(H57:AL57),--$H$59:$AL$59)) -> 11 | AZ57: =IF(COUNTIF(H57:AL57,"Б"),COUNTIF(H57:AL57,"Б"),"") ->  | BA57: =MIN(IF(ISTEXT(H57:AL57),--$H$59:$AL$59)) -> 5 | BB57: =MAX(IF(ISTEXT(H57:AL57),--$H$59:$AL$59)) -> 11 | BC57: =IF(COUNTIF(H57:AL57,"А"),COUNTIF(H57:AL57,"А"),"") ->  | BD57: =MIN(IF(ISTEXT(H57:AL57),--$H$59:$AL$59)) -> 5 | BE57: =MAX(IF(ISTEXT(H57:AL57),--$H$59:$AL$59)) -> 11 | BF57: =IF(COUNTIF(H57:AL57,"К"),COUNTIF(H57:AL57,"К"),"") ->  | BG57: =MIN(IF(ISTEXT(H57:AL57),--$H$59:$AL$59)) -> 5 | BH57: =MAX(IF(ISTEXT(H57:AL57),--$H$59:$AL$59)) -> 11 | BI57: =IF(COUNTIF(H57:AL57,"Д"),COUNTIF(H57:AL57,"Д"),"") ->  | BJ57: =MIN(IF(ISTEXT(H57:AL57),--$H$59:$AL$59)) -> 5 | BK57: =MAX(IF(ISTEXT(H57:AL57),--$H$59:$AL$59)) -> 11 | BL57: =IF(COUNTIF(H57:AL57,"У"),COUNTIF(H57:AL57,"У"),"") ->  | BM57: =MIN(IF(ISTEXT(H57:AL57),--$H$59:$AL$59)) -> 5 | BN57: =MAX(IF(ISTEXT(H57:AL57),--$H$59:$AL$59)) -> 11
H59: 1 | I59: 2 | J59: 3 | K59: 4 | L59: 5 | M59: 6 | N59: 7 | O59: 8 | P59: 9 | Q59: 10 | R59: 11 | S59: 12 | T59: 13 | U59: 14 | V59: 15 | W59: 16 | X59: 17 | Y59: 18 | Z59: 19 | AA59: 20 | AB59: 21 | AC59: 22 | AD59: 23 | AE59: 24 | AF59: 25 | AG59: 26 | AH59: 27 | AI59: 28 | AJ59: 29 | AK59: 30 | AL59: 31

Sheet ТАБЛИЦА (hidden)
A1: 8 часовой рабочий день | B1: 7,5/я | C1: 0.94 | E1: 7 часовой рабочий день
B2: 7/я | C2: 0.87 | J2: Ж | K2: ПРОИЗВЕД(P14* (R14/100)/160*T14)
B3: 6,5/я | C3: 0.81 | F3: 6,5/я | G3: 0.93 | K3: Оклад*(% допл/100/ кол-во дней раб.графика(М) * кол-во отраб.часов
B4: 6/я | C4: 0.75 | F4: 6/я | G4: 0.86
B5: 5,5/я | C5: 0.68 | F5: 5,5/я | G5: 0.78 | J5: М | K5: ПРОИЗВЕД(P9*(R9/100)/17*S9)
B6: 5/я | C6: 0.62 | F6: 5/я | G6: 0.71 | K6: Оклад*(% допл/100/ кол-во дней раб графика * кол-во отраб.часов
B7: 4,5/я | C7: 0.56 | F7: 4,5/я | G7: 0.64
B8: 4/я | C8: 0.5 | F8: 4/я | G8: 0.57
B9: 3,5/я | C9: 0.43 | F9: 3,5/я | G9: 0.5
B10: 3/я | C10: 0.37 | F10: 3/я | G10: 0.43
B11: 2,5/я | C11: 0.31 | F11: 2,5/я | G11: 0.36
B12: 2/я | C12: 0.25 | F12: 2/я | G12: 0.28
B13: 1,5/я | C13: 0.18 | F13: 1,5/я | G13: 0.21
B14: 1/я | C14: 0.12 | F14: 1/я | G14: 0.14
B15: я/1 | C15: 0.12 | F15: я/1 | G15: 0.14
B16: я/1,5 | C16: 0.18 | F16: я/1,5 | G16: 0.21
B17: я/2 | C17: 0.25 | F17: я/2 | G17: 0.28
B18: я/2,5 | C18: 0.31 | F18: я/2,5 | G18: 0.36
B19: я/3 | C19: 0.37 | F19: я/3 | G19: 0.43
B20: я/3,5 | C20: 0.43 | F20: я/3,5 | G20: 0.5
B21: я/4 | C21: 0.5 | F21: я/4 | G21: 0.57
B22: я/4,5 | C22: 0.56 | F22: я/4,5 | G22: 0.64
B23: я/5 | C23: 0.62 | F23: я/5 | G23: 0.71
B24: я/5,5 | C24: 0.68 | F24: я/5,5 | G24: 0.78
B25: я/6 | C25: 0.75 | F25: я/6 | G25: 0.86
B26: я/6,5 | C26: 0.81 | F26: я/6,5 | G26: 0.93
B27: я/7 | C27: 0.87
B28: я/7,5 | C28: 0.94
F31: Кол-во дней | G31: Кол-во часов
A32: Д/О | B32: 7 | C32: 5.5 | D32: 8 | E32: 7 | F32: =COUNT(A32:E32)+SUMPRODUCT(($B$1:$B$28=A32:E32)*$C$1:$C$28) -> 4 | G32: =SUMPRODUCT(--TEXT(SUBSTITUTE(SUBSTITUTE(A32:E32,"я",""),"/",""),"#,#;;0;\0")) -> 27.5
A33: 7 | B33: 6/Я | C33: 5 | D33: 8 | E33: 7 | F33: =COUNT(A33:E33)+SUMPRODUCT(($B$1:$B$28=A33:E33)*$C$1:$C$28) -> 4.75 | G33: =SUMPRODUCT(--TEXT(SUBSTITUTE(SUBSTITUTE(A33:E33,"я",""),"/",""),"#,#;;0;\0")) -> 27
A34: 7 | B34: 7 | C34: 6 | D34: 8 | E34: 7 | F34: =COUNT(A34:E34)+SUMPRODUCT(($B$1:$B$28=A34:E34)*$C$1:$C$28) -> 5 | G34: =SUMPRODUCT(--TEXT(SUBSTITUTE(SUBSTITUTE(A34:E34,"я",""),"/",""),"#,#;;0;\0")) -> 35
A35: 7 | B35: 7 | C35: Б | D35: 8 | E35: 7 | F35: =COUNT(A35:E35)+SUMPRODUCT(($B$1:$B$28=A35:E35)*$C$1:$C$28) -> 4 | G35: =SUMPRODUCT(--TEXT(SUBSTITUTE(SUBSTITUTE(A35:E35,"я",""),"/",""),"#,#;;0;\0")) -> 29
A36: 7 | B36: 7 | C36: * | D36: 8 | E36: 7 | F36: =COUNT(A36:E36)+SUMPRODUCT(($B$1:$B$28=A36:E36)*$C$1:$C$28) -> 4 | G36: =SUMPRODUCT(--TEXT(SUBSTITUTE(SUBSTITUTE(A36:E36,"я",""),"/",""),"#,#;;0;\0")) -> 29
A72: 7 | B72: 7 | C72: 8 | D72: 8 | E72: 7 | F72: =COUNT(A72:E72)+SUMPRODUCT(($B$1:$B$28=A72:E72)*$C$1:$C$28) -> 5 | G72: =SUMPRODUCT(--SUBSTITUTE(SUBSTITUTE(A72:E72,"я",""),"/","*")) -> 37

Sheet СПИСОК (hidden)
A1: № | B1: таб | C1: Ф.И.О. | D1: Ф.И.О. | E1: шифр | F1: разряд | G1: категория | H1: оклады
B2: 1 | C2: 2 | D2: 3 | E2: 4 | F2: 5 | G2: 6 | H2: 7 | I2: 8 | J2: 9 | K2: 10 | L2: 11 | M2: 12 | N2: 13 | O2: 14
A7: 1 табл. | B7: 2 табл.
A8: За | B8: 719 | C8: Зыкова А.В. | E8: 31170 | G8: 4
A9: 1 | B9: 860 | C9: Перепёлкина О.П. | E9: 92200 | G9: 2
A10: 2 | B10: 28 | C10: Петровский С.А. | E10: 28185 | G10: 6
A11: 3 | B11: 30 | C11: Шевчук А.Н. | E11: 28180 | G11: 6
A12: 4 | B12: 900 | C12: Горбачёв Г.Е. | D12: Горбачёва Г.Е. | E12: 98500 | F12: 4 | G12: 1 | H12: 5491
A13: % доплат | B13: 901 | C13: Мошнегуца Г.М. | D13: Мошнегуцу Г.М. | E13: 98500 | F13: 5 | G13: 1 | H13: 6033
A14: 5 | B14: 902 | C14: Коновалов А.Г. | D14: Коновалова А.Г. | E14: 98500 | F14: 5 | G14: 1 | H14: 6033
A15: 10 | B15: 905 | C15: Стасюк И.И. | D15: Стасюка И.И. | E15: 98500 | F15: 5 | G15: 1 | H15: 6033
A16: 15 | B16: 906 | C16: Кузьмина И.В. | D16: Кузьмину И.В. | E16: 98400 | F16: 3 | G16: 1 | H16: 4998
A17: 20 | B17: 907 | C17: Зиновьев Н.Н. | D17: Зиновьева Н.Н. | E17: 98500 | F17: 5 | G17: 1 | H17: 6033
A18: 25 | B18: 908 | C18: Парфёнов А.В. | D18: Парфёнова А.В. | E18: 98500 | F18: 3 | G18: 1 | H18: 4998
A19: 30 | B19: 909 | C19: Московченко О.А. | D19: Московченко О.А. | E19: 98400 | F19: 4 | G19: 1 | H19: 5491
A20: 35 | B20: 910 | C20: Гундаков А.А. | D20: Гундакова А.А. | E20: 98500 | F20: 3 | G20: 1 | H20: 4998
A21: 40 | B21: 911 | C21: Румянцев Д.А. | D21: Румянцева Д.А. | E21: 98500 | F21: 4 | G21: 1 | H21: 5491
A22: 45 | B22: 914 | C22: Остапчик А.Б. | D22: Остапчика А.Б. | E22: 98500 | F22: 5 | G22: 1 | H22: 6033
A23: 50 | B23: 918 | C23: Челпанников С.Ю. | D23: Челпанникова С.Ю. | E23: 98500 | F23: 5 | G23: 1 | H23: 6033
A24: 55 | B24: 919 | C24: Соколов С.В. | D24: Соколова С.В. | E24: 98500 | F24: 3 | G24: 1 | H24: 4998
A25: 60 | B25: 920 | C25: Копусов Р.А. | D25: Копусова Р.А. | E25: 98500 | F25: 5 | G25: 1 | H25: 6033
A26: 65 | B26: 921 | C26: Нецветаев А.В. | D26: Нецветаева А.В. | E26: 98500 | F26: 5 | G26: 1 | H26: 6033
A27: 70 | B27: 923 | C27: Самойлов С.А. | D27: Самойлова С.А. | E27: 98500 | F27: 4 | G27: 1 | H27: 5491

Sheet норма (hidden)
A1: 2014 | B1: Заполняется раз в год
D2: Праздничные
B3: 1 квартал | C3: январь | D3: 1 | E3: 2 | F3: 3 | G3: 6 | H3: 7 | I3: 8 | N3: тут нужно заполнять ТОЛЬКО праздники, которые НЕ в выходные дни
C4: февраль | N4: Если случайна заполнили иначе, то выдельтся красным
C5: март | D5: 10
B6: 2 квартал | C6: апрель
C7: май | D7: 1 | E7: 2 | F7: 9
C8: июнь | D8: 12 | E8: 13
B9: 3 квартал | C9: июль
C10: август
C11: сентябрь
B12: 4 квартал | C12: октябрь
C13: ноябрь | D13: 3 | E13: 4
C14: декабрь
B17: Производственный календарь на 2014г. при 5 дневной рабочей неделе
D18: муж.гр | F18: жен.гр
B19: 1 квартал | C19: январь | D19: 17 | E19: 136 | F19: 17 | G19: 123
C20: февраль | D20: 20 | E20: 159 | F20: 20 | G20: 143
C21: март | D21: 20 | E21: 159 | F21: 20 | G21: 144
B22: 2 квартал | C22: апрель | D22: 22 | E22: 175 | F22: 22 | G22: 157
C23: май | D23: 19 | E23: 151 | F23: 19 | G23: 136
C24: июнь | D24: 19 | E24: 151 | F24: 19 | G24: 137
B25: 3 квартал | C25: июль | D25: 23 | E25: 184 | F25: 23 | G25: 165
C26: август | D26: 21 | E26: 168 | F26: 21 | G26: 151
C27: сентябрь | D27: 22 | E27: 176 | F27: 22 | G27: 159
B28: 4 квартал | C28: октябрь | D28: 23 | E28: 184 | F28: 23 | G28: 165
C29: ноябрь | D29: 18 | E29: 144 | F29: 18 | G29: 129
C30: декабрь | D30: 23 | E30: 183 | F30: 23 | G30: 163
